Cogmind - Beta 15 @@@ ROGUE MODE // 2025.09.12 @ 19:02:09 Player: Petvaria Result: Destroyed by Y-64 Sentinel with KE Penetrator Performance ------------- Evolutions (5) 2500 Regions Visited (9) 1800 Robots Destroyed (42) 210 Value Destroyed (1416) 1416 Prototype IDs (18) 360 Alien Tech Used (0) 0 Bonus (800) 800 TOTAL SCORE: 7086 Bonus ------- Registered with UFD 300 Met Optimus in HQ 500 Cogmind --------- Core Integrity 0/1000 Matter 300/300 Energy 99/100 System Corruption 0% Temperature Cool (9) Movement Core (50) Location -5/Upper Caves Parts ------- > --- POWER (1) -------- (None) > --- PROPULSION (5) --- (None) > --- UTILITY (9) ------ Improved Signal Interpreter > --- WEAPON (2) ------- (None) > --- INVENTORY (5) ---- Light Nuclear Core Improved Signal Interpreter Peak State ------------ > --- POWER ------------ Ion Engine > --- PROPULSION ------- Cesium-ion Thruster Cesium-ion Thruster Xenon Bombardment Thruster > --- UTILITY ---------- Machine Analyzer Improved Sensor Array Improved Signal Interpreter > --- WEAPON ----------- Makeshift Hammer > --- INVENTORY -------- Light Nuclear Core [Rating: 24] Favorites ----------- Power Ion Engine Engine Ion Engine Propulsion Light Treads Treads Light Treads Leg Enhanced Flexi-carbon Leg Flight Unit Cesium-ion Thruster Utility Scrap Shield Device Improved Sensor Array Storage Medium Storage Unit Processor Improved Signal Interpreter Protection Scrap Shield Weapon Barrage Gun Energy Gun Small Laser Ballistic Gun Barrage Gun Ballistic Cannon Battle Cannon Launcher Subdweller Shrapnel Launcher Impact Weapon Makeshift Hammer Slashing Weapon Makeshift Axe Build | -11 -10 -10 -8 -8 -6 -6 -6 -5 -5 ------- Run | Yrd Mat Sub Rec Scr Fac Was Fac Fac Upp Slots Evolved 10 | . . . . . 8 . . 2 . Power . | . . . . . . . . . . Propulsion 3 | . . . . . 3 . . . . Utility 7 | . . . . . 5 . . 2 . Weapon . | . . . . . . . . . . Parts Attached 35 | 6 1 16 . 2 6 . 1 3 . Power 2 | 1 . 1 . . . . . . . Engine 2 | 1 . 1 . . . . . . . Core . | . . . . . . . . . . Reactor . | . . . . . . . . . . Propulsion 13 | 2 . 4 . 2 3 . . 2 . Treads 8 | 2 . 4 . 2 . . . . . Leg 1 | . . . . . . . . 1 . Wheel . | . . . . . . . . . . Hover . | . . . . . . . . . . Flight 4 | . . . . . 3 . . 1 . Utility 9 | 1 1 2 . . 3 . 1 1 . Device 3 | . . . . . 1 . 1 1 . Storage 2 | 1 1 . . . . . . . . Processor 2 | . . . . . 2 . . . . Hackware . | . . . . . . . . . . Protection 2 | . . 2 . . . . . . . Artifact . | . . . . . . . . . . Weapon 11 | 2 . 9 . . . . . . . Energy Gun 2 | . . 2 . . . . . . . Energy Cannon . | . . . . . . . . . . Ballistic Gun 5 | 2 . 3 . . . . . . . Ballistic Cannon 1 | . . 1 . . . . . . . Launcher 1 | . . 1 . . . . . . . Special Weapon . | . . . . . . . . . . Impact Weapon 1 | . . 1 . . . . . . . Slashing Weapon 1 | . . 1 . . . . . . . Piercing Weapon . | . . . . . . . . . . Special Melee Weapon . | . . . . . . . . . . Unidentified Prototypes 1 | . . . . . . . . 1 . Parts Lost 17 | . 3 4 . . 6 . 1 2 1 Power 1 | . . . . . 1 . . . . Propulsion 7 | . 1 2 . . 3 . . 1 . Utility 4 | . . . . . 2 . 1 1 . Weapon 5 | . 2 2 . . . . . . 1 Highest Loss Streak 4 | . 3 1 . . 4 . 1 1 2 To Critical Strikes . | . . . . . . . . . . Average Backups 5 | 2 8 5 4 4 1 1 1 2 2 Power 1 | . 1 1 1 1 1 1 1 1 1 Propulsion 1 | 1 5 . 1 2 . . . . . Utility . | . . . . . . . . 1 1 Weapon 2 | . 1 3 2 1 . . . . . Tool/Special . | . . . . . . . . . . Unused Backups 6 | . . 4 . . . . . . 2 Power 1 | . . . . . . . . . 1 Propulsion 4 | . . 4 . . . . . . . Utility 1 | . . . . . . . . . 1 Weapon . | . . . . . . . . . . Tool/Special . | . . . . . . . . . . Average Slot Usage (%) 75 | . 84 84 71 79 42 13 16 12 6 Engine 12 | . 14 13 14 14 3 . . . . Treads 21 | . 27 27 14 22 . . . . . Storage 2 | . 14 2 . . . . . . . Protection 10 | . . 11 14 14 . . . . . Energy Gun 1 | . . 2 . . . . . . . Ballistic Gun 13 | . 27 13 14 14 . . . . . Ballistic Cannon 3 | . . 9 . . . . . . . Launcher 5 | . . . 14 14 . . . . . Impact Weapon 1 | . . 1 . . 5 6 6 5 1 Peak Build Rating 24 | 6 7 20 12 16 24 7 10 14 7 Average Rating 12 | 4 6 12 11 14 19 7 8 8 3 On Entrance 7 | . 6 4 11 12 16 7 7 7 7 Naked Turns . | . . . . . . . . . . Heaviest Build 34 | 14 19 34 34 34 9 3 4 4 3 Greatest Support 43 | 40 40 40 20 43 16 3 3 7 3 Greatest Overweight (x) 1 | . . 1 1 1 1 . 1 1 . Average Overweight (x) . | . . . 1 . . . . . . Largest Inventory Capacity 10 | 8 10 10 5 5 5 5 5 5 5 Average Capacity 5 | 7 9 5 5 5 5 5 5 5 5 Most Carried 10 | 6 10 10 5 5 5 1 3 3 2 Average Carried 5 | 3 8 5 4 4 1 1 1 2 2 Final Capacity 10 | 8 10 5 5 5 5 5 5 5 5 Final Carried 10 | 6 10 3 5 5 1 1 2 2 2 Class Distribution -------------------- 95% | Mutant 3% | Scout Dominant Class ---------------- Mutant | -10/Materials Mutant | -10/Subcaves Mutant | -8/Recycling Mutant | -8/Scraptown Scout | -6/Factory Mutant | -6/Waste Mutant | -6/Factory Mutant | -5/Factory Mutant | -5/Upper Caves Resources | -11 -10 -10 -8 -8 -6 -6 -6 -5 -5 ----------- Run | Yrd Mat Sub Rec Scr Fac Was Fac Fac Upp Matter Collected 1184 | 242 232 478 132 20 60 . 5 . 15 Remotely . | . . . . . . . . . . Salvage Created 1357 | . 514 588 . . 187 . 68 . . Parts 81 | . 28 48 . . 5 . . . . Haulers Intercepted 1 | . 1 . . . . . . . . Recyclers Shooed . | . . . . . . . . . . Parts Field Recycled . | . . . . . . . . . . Retrieved Matter . | . . . . . . . . . . Parts Self-Destructed 11 | . . 11 . . . . . . . Prevented 1 | . . . . . . . . . 1 Kills | -11 -10 -10 -8 -8 -6 -6 -6 -5 -5 ------- Run | Yrd Mat Sub Rec Scr Fac Was Fac Fac Upp Combat Hostiles Destroyed 30 | . 6 19 . . 3 . 2 . . Melee 2 | . . . . . 2 . . . . Guns 21 | . 6 15 . . . . . . . Cannons 4 | . . 4 . . . . . . . AOE 2 | . . . . . . . 2 . . Classes Destroyed 13 | . 6 4 . . 2 . 1 . . Worker 2 | . 2 . . . . . . . . Builder 2 | . 1 . . . . . 1 . . Hauler 1 | . 1 . . . . . . . . Recycler 1 | . 1 . . . . . . . . Operator 2 | . . . . . 1 . . 1 . Turret 2 | . . 2 . . . . . . . Watcher 1 | . 1 . . . . . . . . Swarmer 3 | . . 3 . . . . . . . Saboteur 1 | . . . . . . . 1 . . Grunt 9 | . 6 . . . 1 . 2 . . Sentry 1 | . . 1 . . . . . . . Hunter 2 | . . . . . 2 . . . . Subdweller 15 | . . 15 . . . . . . . Best Kill Streak 6 | . 6 3 . . 1 . 3 1 . Combat Bots Only 3 | . 3 3 . . 1 . 2 . . Max Kills in Single Turn 4 | . 1 1 . . 1 . 4 1 . Gunslinging . | . . . . . . . . . . Exploded 2 | . . . . . . . 2 . . Melee 1 | . . . . . 1 . . . . Uniques/NPCs Destroyed . | . . . . . . . . . . Combat | -11 -10 -10 -8 -8 -6 -6 -6 -5 -5 -------- Run | Yrd Mat Sub Rec Scr Fac Was Fac Fac Upp Hostile Shots Fired 302 | . 42 105 . . 40 . 20 8 87 Missed 101 | . 9 32 . . 19 . 6 3 32 Hits 201 | . 33 73 . . 21 . 14 5 55 Projectile 201 | . 33 73 . . 21 . 14 5 55 AOE 1 | . 1 . . . . . . . . Critical Strikes 6 | . 1 2 . . 2 . . . 1 Damage Taken 3920 | . 587 1460 . . 370 . 390 134 979 Core 1729 | . 109 104 . . 183 . 331 82 920 Absorbed by Shields . | . . . . . . . . . . Core Remaining (%) 51 | 100 . . . 14 . . 39 . . Volleys Fired 92 | . 34 58 . . . . . . . Largest 2 | . 2 2 . . . . . . . Hottest 80 | . 40 80 . . . . . . . Shots Fired 174 | . 68 106 . . . . . . . Gun 139 | . 68 71 . . . . . . . Cannon 30 | . . 30 . . . . . . . Launcher 5 | . . 5 . . . . . . . Special . | . . . . . . . . . . Kinetic 155 | . 68 87 . . . . . . . Thermal 19 | . . 19 . . . . . . . Explosive . | . . . . . . . . . . Electromagnetic . | . . . . . . . . . . Robot Hit Streak 24 | . 24 23 . . . . . . . Robot Miss Streak 3 | . 3 2 . . . . . . . Penetration Max . | . . . . . . . . . . Secondary Targets 1 | . 1 . . . . . . . . Max Gunslinging Chain 1 | . 1 . . . . . . . . Shots Hit Robots 148 | . 54 79 . . 13 . 1 1 . Core Hits 65 | . 23 37 . . 2 . 3 . . Critical Kills 2 | . . 1 . . 1 . . . . Critical Parts Destroyed 3 | . 1 . . . 2 . . . . Critical Strikes 8 | . 1 4 . . 3 . . . . Destroy 3 | . 1 2 . . . . . . . Blast 2 | . . 2 . . . . . . . Smash 3 | . . . . . 3 . . . . Melee Attacks 44 | . . 10 . . 20 . 7 7 . Impact 39 | . . 5 . . 20 . 7 7 . Slashing 5 | . . 5 . . . . . . . Piercing . | . . . . . . . . . . Sneak Attacks 1 | . . . . . 1 . . . . Combat Hostiles . | . . . . . . . . . . Follow-up Attacks . | . . . . . . . . . . Damage Inflicted 3724 | . 685 1722 . . 692 . 589 36 . Guns 1764 | . 681 1083 . . . . . . . Cannons 407 | . . 407 . . . . . . . Explosions 771 | . . 232 . . . . 539 . . Melee 778 | . . . . . 692 . 50 36 . Ramming 4 | . 4 . . . . . . . . Kinetic 2241 | . 681 1560 . . . . . . . Thermal 701 | . . 162 . . . . 539 . . Explosive . | . . . . . . . . . . Electromagnetic . | . . . . . . . . . . Impact 778 | . . . . . 692 . 50 36 . Slashing . | . . . . . . . . . . Piercing . | . . . . . . . . . . Highest Corruption . | . . . . . . . . . . Average Corruption . | . . . . . . . . . . Corruption Purged . | . . . . . . . . . . Corruption Blocked . | . . . . . . . . . . Overload Shots . | . . . . . . . . . . Overflow Damage 524 | . . 23 . . 230 . 237 34 . Projectiles . | . . . . . . . . . . Explosions 260 | . . 23 . . . . 237 . . Melee 264 | . . . . . 230 . . 34 . Knockbacks 13 | . . 6 . . 5 . 1 1 . Impact 7 | . . . . . 5 . 1 1 . Kinetic 6 | . . 6 . . . . . . . Secondary . | . . . . . . . . . . Self-Inflicted Damage 195 | . . 35 . . . . 160 . . Shots 3 | . . 1 . . . . 2 . . Rammed 3 | . 3 . . . . . . . . Targets Rammed 3 | . 3 . . . . . . . . Kicked . | . . . . . . . . . . Crushed . | . . . . . . . . . . Highest Temperature 24 | . 20 . . . . . . . 24 Average Temperature 5 | . 4 . . . . . . . 13 Received Heat Transfer 742 | . 231 246 . . 90 . 36 9 130 Siege Activations . | . . . . . . . . . . Martial Activations . | . . . . . . . . . . Shielding Activations . | . . . . . . . . . . Robots Disrupted . | . . . . . . . . . . Combat Hostiles . | . . . . . . . . . . Robots Corrupted 3 | . . . . . 2 . . 1 . Combat Hostiles 1 | . . . . . 1 . . . . Parts Fried 4 | . . . . . 3 . . 1 . Impact Corruptions 11 | . . . . . 9 . . 2 . Robots Melted . | . . . . . . . . . . Combat Hostiles . | . . . . . . . . . . Parts Melted 1 | . . 1 . . . . . . . Heat Transferred 725 | . . 375 . . . . 350 . . Parts Sabotaged . | . . . . . . . . . . Parts Stolen . | . . . . . . . . . . Parts Stripped . | . . . . . . . . . . Power Chain Reactions . | . . . . . . . . . . Alert | -11 -10 -10 -8 -8 -6 -6 -6 -5 -5 ------- Run | Yrd Mat Sub Rec Scr Fac Was Fac Fac Upp Maximum Alert Level . | . . . . . . . . . . Low Security (%) 100 | 100 100 . 100 . 100 100 100 100 . Level 1 . | . . . . . . . . . . Level 2 . | . . . . . . . . . . Level 3 . | . . . . . . . . . . Level 4 . | . . . . . . . . . . Level 5 . | . . . . . . . . . . High Security . | . . . . . . . . . . Max Security . | . . . . . . . . . . Peak Influence 135 | . 83 . 27 . 35 . 135 75 . Initial 65 | . . . 27 . . . . 65 . Average 14 | . 26 . 2 . 11 . 7 29 . Influence Increases 916 | . 200 180 . . 181 . 185 80 90 Destroy 0b10 Robot/C 340 | . 120 120 . . 60 . 40 . . Destroy 0b10 Robot/NC 45 | . 30 . . . 5 . 5 5 . Destroy Leader 44 | . 34 . . . 10 . . . . Allied During Kill 1 | . . . . . . . 1 . . Successful Hack 7 | . . . . . . . 7 . . Disable Machine 120 | . . . . . 45 . 60 15 . Destroy Structure 59 | . 1 . . . 1 . 57 . . Partial Spotted 60 | . . . . . 60 . . . . Lose Combat Pursuer 240 | . 15 60 . . . . 15 60 90 Influence Decreases 842 | . 200 123 57 . 181 . 50 160 71 Entered New Map 121 | . . . 30 . . . . 70 21 Time Decay 636 | . 200 113 27 . 146 . 40 70 40 Lost Part 85 | . . 10 . . 35 . 10 20 10 Squads Dispatched 4 | . . . . . 1 . 1 2 . Investigation 1 | . . . . . . . 1 . . Extermination . | . . . . . . . . . . Reinforcement 3 | . . . . . 1 . . 2 . Assault . | . . . . . . . . . . Garrison . | . . . . . . . . . . Intercept . | . . . . . . . . . . Searches Triggered . | . . . . . . . . . . Construction Impeded . | . . . . . . . . . . Haulers Reinforced . | . . . . . . . . . . Active Scanning Responses . | . . . . . . . . . . Cargo Convoy Interrupts . | . . . . . . . . . . Stealth | -11 -10 -10 -8 -8 -6 -6 -6 -5 -5 --------- Run | Yrd Mat Sub Rec Scr Fac Was Fac Fac Upp Distress Signals 1 | . . . . . . . 1 . . Communications Jammed . | . . . . . . . . . . Distress Signals . | . . . . . . . . . . Times Spotted 75 | . 13 23 . . 8 2 9 9 11 Peak Tracking Total 6 | . 3 6 . . 3 2 6 6 6 Tactical Retreats 7 | . 1 2 . . . . 1 1 2 Traps | -11 -10 -10 -8 -8 -6 -6 -6 -5 -5 ------- Run | Yrd Mat Sub Rec Scr Fac Was Fac Fac Upp Traps Triggered 6 | . 2 2 . . 1 . . 1 . Indirectly . | . . . . . . . . . . Trap Hack Attempts . | . . . . . . . . . . Triggered . | . . . . . . . . . . Disarmed . | . . . . . . . . . . Reprogrammed . | . . . . . . . . . . Reused . | . . . . . . . . . . Traps Extracted . | . . . . . . . . . . Installed . | . . . . . . . . . . Triggered . | . . . . . . . . . . Machines | -11 -10 -10 -8 -8 -6 -6 -6 -5 -5 ---------- Run | Yrd Mat Sub Rec Scr Fac Was Fac Fac Upp Machines Disabled 13 | . . 5 . . 3 . 4 1 . Max in Single Turn 4 | . . 4 . . 1 . 3 1 . Garrison Access 1 | . . . . . . . . 1 . Machines Repaired . | . . . . . . . . . . Machines Dismantled . | . . . . . . . . . . Machines Sabotaged . | . . . . . . . . . . Overloaded Fab Kills . | . . . . . . . . . . Hacking | -11 -10 -10 -8 -8 -6 -6 -6 -5 -5 --------- Run | Yrd Mat Sub Rec Scr Fac Was Fac Fac Upp Machines Accessed 7 | . . 3 . 1 . . 2 1 . Terminals . | . . . . . . . . . . Fabricators 1 | . . . . . . . 1 . . Repair Stations 1 | . . . . . . . 1 . . Recycling Units . | . . . . . . . . . . Scanalyzers . | . . . . . . . . . . Garrison Access 1 | . . . . . . . . 1 . Total Hacks 11 | . . 6 . 1 . . 3 1 . Successful 9 | . . 6 . 1 . . 1 1 . Failed 2 | . . . . . . . 2 . . Catastrophic 1 | . . . . . . . 1 . . Database Lockouts . | . . . . . . . . . . Manual . | . . . . . . . . . . Terminals . | . . . . . . . . . . Fabricators 1 | . . . . . . . 1 . . Repair Stations 2 | . . . . . . . 2 . . Recycling Units . | . . . . . . . . . . Scanalyzers . | . . . . . . . . . . Garrison Access 1 | . . . . . . . . 1 . Terminal Hacks 7 | . . 6 . 1 . . . . . Record 4 | . . 4 . . . . . . . Open Door 1 | . . 1 . . . . . . . Proto ID Catalog 2 | . . 1 . 1 . . . . . Fabricator Hacks 1 | . . . . . . . 1 . . Build 1 | . . . . . . . 1 . . Repair Station Hacks . | . . . . . . . . . . Recycling Unit Hacks . | . . . . . . . . . . Scanalyzer . | . . . . . . . . . . Garrison Access Hacks 1 | . . . . . . . . 1 . Seal Access 1 | . . . . . . . . 1 . Unauthorized Hacks . | . . . . . . . . . . Terminals . | . . . . . . . . . . Fabricators . | . . . . . . . . . . Repair Stations . | . . . . . . . . . . Recycling Units . | . . . . . . . . . . Scanalyzers . | . . . . . . . . . . Garrison Access . | . . . . . . . . . . Data Cores Recovered . | . . . . . . . . . . Used . | . . . . . . . . . . Hacking Detections 2 | . . . . . . . 2 . . Full Trace Events 1 | . . . . . . . 1 . . Feedback Events . | . . . . . . . . . . Feedback Blocked . | . . . . . . . . . . Robot Schematics Acquired . | . . . . . . . . . . Robots Built 2 | . . . . . . . 2 . . Authchips . | . . . . . . . . . . Time 152 | . . . . . . . 152 . . Total Robot Build Rating 10 | . . . . . . . 10 . . Part Schematics Acquired . | . . . . . . . . . . Parts Built . | . . . . . . . . . . Authchips . | . . . . . . . . . . Time . | . . . . . . . . . . Total Part Build Rating . | . . . . . . . . . . Parts Repaired . | . . . . . . . . . . Time . | . . . . . . . . . . Parts Recycled . | . . . . . . . . . . Recycled Matter . | . . . . . . . . . . Retrieved Matter . | . . . . . . . . . . Retrieved Components . | . . . . . . . . . . Parts Scanalyzed . | . . . . . . . . . . Part Schematics Acquired . | . . . . . . . . . . Parts Damaged . | . . . . . . . . . . Bothacking | -11 -10 -10 -8 -8 -6 -6 -6 -5 -5 ------------ Run | Yrd Mat Sub Rec Scr Fac Was Fac Fac Upp Used RIF Installer . | . . . . . . . . . . Robots Hacked . | . . . . . . . . . . Non-combat . | . . . . . . . . . . Combat . | . . . . . . . . . . Robot Hacks Applied . | . . . . . . . . . . Relay Couplers Released . | . . . . . . . . . . Fabnet Peak Effective % . | . . . . . . . . . . Robots Rewired . | . . . . . . . . . . Allies Hacked . | . . . . . . . . . . Hacks Repelled . | . . . . . . . . . . Allies | -11 -10 -10 -8 -8 -6 -6 -6 -5 -5 -------- Run | Yrd Mat Sub Rec Scr Fac Was Fac Fac Upp Total Allies 3 | . . . . . . 1 2 . . Largest Group 2 | . . . . . . 1 2 . . Highest-Rated Group 31 | . . . . . . 31 28 . . Highest-Rated Ally 31 | . . . . . . 31 14 . . Total Orders . | . . . . . . . . . . Ally Attacks 6 | . . . . . . 5 1 . . Total Damage 64 | . . . . . . 64 . . . Kills . | . . . . . . . . . . Allies Corrupted . | . . . . . . . . . . Allies Melted . | . . . . . . . . . . Intel | -11 -10 -10 -8 -8 -6 -6 -6 -5 -5 ------- Run | Yrd Mat Sub Rec Scr Fac Was Fac Fac Upp Active Infowar (turns) 496 | . . . . . 341 . 134 21 . Sensors 496 | . . . . . 341 . 134 21 . Machine Analysis 300 | . . . . . 300 . . . . Robot Analysis Total . | . . . . . . . . . . Derelict Logs Recovered 4 | . . 2 . 2 . . . . . Drone Launches . | . . . . . . . . . . Drone Recoveries . | . . . . . . . . . . Exploration | -11 -10 -10 -8 -8 -6 -6 -6 -5 -5 ------------- Run | Yrd Mat Sub Rec Scr Fac Was Fac Fac Upp Turns Passed 8868 | 94 615 3683 452 3056 387 31 257 210 83 Spaces Moved 5783 | 54 254 2107 187 1607 630 62 352 365 165 Core 911 | 8 . . . . 13 62 352 311 165 Treads 4201 | 46 254 2107 187 1607 . . . . . Legs . | . . . . . . . . . . Wheels . | . . . . . . . . . . Hover . | . . . . . . . . . . Flight 671 | . . . . . 617 . . 54 . Fastest Speed 30 | 50 160 160 240 160 30 50 50 45 50 Average Speed 140 | 143 160 160 240 189 31 50 67 52 50 Slowest Speed 240 | 160 160 240 240 240 100 50 100 100 50 Overloaded Moves . | . . . . . . . . . . Propulsion Burnouts . | . . . . . . . . . . Robots Hopped 5 | . . . . . 5 . . . . Potential Cave-ins . | . . . . . . . . . . Cave-ins Triggered . | . . . . . . . . . . Exploration Rate (%) 44 | 5 64 97 41 93 13 72 8 14 34 Regions Visited 9 Branch Regions 4 Pre-discovered Areas 2 | . . 2 . . . . . . . Known Exits Taken 2 | . . . . . . . 1 1 . Unknown Exits Taken 5 | 1 1 1 1 1 . . . . . Scrap Searched 19 | . . 14 . 3 . . . . 2 Spaces Dug 9 | . . 4 . . 1 . 4 . . Terrain Destroyed 112 | . . 36 . . 1 . 75 . . Melee 9 | . . 4 . . 1 . 4 . . Projectile 1 | . . 1 . . . . . . . AOE 102 | . . 31 . . . . 71 . . Terrain Rammed . | . . . . . . . . . . Walls Destroyed . | . . . . . . . . . . Machines Disabled . | . . . . . . . . . . Actions | -11 -10 -10 -8 -8 -6 -6 -6 -5 -5 --------- Run | Yrd Mat Sub Rec Scr Fac Was Fac Fac Upp Total 6316 | 71 393 2284 191 1615 794 61 364 378 165 Wait 290 | . 96 50 3 4 134 . 3 . . Move 5767 | 53 254 2106 186 1606 621 61 351 364 165 Hop 4 | . . . . . 4 . . . . Pick Up 38 | 12 5 10 2 1 3 . 2 3 . Fast Attach 3 | . . 2 . 1 . . . . . Attach 25 | 6 1 7 . . 7 . 1 3 . Detach . | . . . . . . . . . . Swap 19 | . . 18 . 1 . . . . . Drop 24 | . 1 15 . 2 5 . . 1 . Fire 92 | . 34 58 . . . . . . . Melee 44 | . . 10 . . 20 . 7 7 . Ram . | . . . . . . . . . . Kick . | . . . . . . . . . . Crush 2 | . 2 . . . . . . . . Escape Stasis . | . . . . . . . . . . Rewire . | . . . . . . . . . . Trap . | . . . . . . . . . . Miscellaneous 8 | . . 8 . . . . . . . Route ------- -11/Scrapyard -10/Materials (discovered 2 exits: [*Min] / *Sub) -10/Subcaves (discovered 3 exits: [*Mat x2] / [*Rec]) -8/Recycling -8/Scraptown (discovered 2 exits: [*Fac x2]) -6/Factory (discovered 2 exits: *Fac x2) -6/Waste -6/Factory -5/Factory -5/Upper Caves History --------- Turn | Location | Event 4 | -11/Scrapyard | Discovered new exit (range 16) 95 | -11/Scrapyard | Entered Materials 301 | -10/Materials | Build established: Mutant 539 | -10/Materials | Discovered new exit (range 10) 695 | -10/Materials | Derelicts attacked the area 700 | -10/Materials | Discovered new exit (range 8) 710 | -10/Materials | Entered Subcaves 740 | -10/Subcaves | Lost 3 parts (1n2w) 746 | -10/Subcaves | Disturbed a concealed Subdweller 748 | -10/Subcaves | Core integrity fell below 50% 822 | -10/Subcaves | Disturbed a concealed Subdweller 1536 | -10/Subcaves | A swath of the cavern ceiling suddenly collapsed 1676 | -10/Subcaves | Discovered new exit (range 7) 2090 | -10/Subcaves | Visited Clippyterm 2095 | -10/Subcaves | Learned location of Deep Caves (-6) 2695 | -10/Subcaves | Shifting Twisted Machinery released Sub. Machine Gun 2726 | -10/Subcaves | Discovered new exit (range 14) 2770 | -10/Subcaves | Learned location of 2 exits from Materials 2789 | -10/Subcaves | Shifting Twisted Machinery released Mak. Thermal Plating 2803 | -10/Subcaves | Discovered new exit (range 14) 3636 | -10/Subcaves | Visited 4L-MR0's lab 3656 | -10/Subcaves | Found Gun Armor 3658 | -10/Subcaves | Attached Gun Armor, gained temporary slots: Weapon x2 3807 | -10/Subcaves | A swath of the cavern ceiling suddenly collapsed 3909 | -10/Subcaves | Shifting Twisted Machinery released Sub. Monowheel 3910 | -10/Subcaves | Shifting Twisted Machinery released Sub. Power Source 3970 | -10/Subcaves | A Subdweller sparked back to life 3970 | -10/Subcaves | A Subdweller sparked back to life 3970 | -10/Subcaves | A Subdweller sparked back to life 4049 | -10/Subcaves | Core integrity fell below 20% 4393 | -10/Subcaves | Entered Recycling 4787 | -8/Recycling | Scanned before Scraplab entrance 4821 | -8/Recycling | Entered Scraplab 4840 | -8/Recycling | Discovered new exit (range 3) 4845 | -8/Recycling | Entered Scraptown 4980 | -8/Scraptown | Heard Great Nut preacher, LISTEN AND RECITE! 5697 | -8/Scraptown | Scanned Subdweller tech in exchange for log data 5705 | -8/Scraptown | Learned Research security intel 5707 | -8/Scraptown | Learned Research terminal intel 5741 | -8/Scraptown | Discovered new exit (range 7) 5909 | -8/Scraptown | Visited TADAMA 5942 | -8/Scraptown | Visited Cyclists 6038 | -8/Scraptown | Visited Awakened 6077 | -8/Scraptown | Visited Shadow of the Wyrm 6105 | -8/Scraptown | Visited Junk Repository 6558 | -8/Scraptown | Visited Fellowship of the Rings 6589 | -8/Scraptown | Visited UFD Registry 6589 | -8/Scraptown | Registered with UFD as "Hammerchip" 6665 | -8/Scraptown | Entered Cyclist Reading Room 6782 | -8/Scraptown | Visited Science Guys 6835 | -8/Scraptown | Visited Supply Room 6867 | -8/Scraptown | Visited LU-1G1's Boring Crew 7086 | -8/Scraptown | Visited Chapter 10 7114 | -8/Scraptown | Visited Derelict Rescue Squad 7167 | -8/Scraptown | Visited Modified Component R&D 7334 | -8/Scraptown | Discovered new exit (range 5) 7401 | -8/Scraptown | Visited Junk Repository 7433 | -8/Scraptown | Visited Scrap Suit Storage 7466 | -8/Scraptown | Visited Cartography Club 7807 | -8/Scraptown | Met Optimus 7807 | -8/Scraptown | Accepted into 0bPrime 7901 | -8/Scraptown | Entered Factory 7901 | -6/Factory | Evolved 8 slots: Propulsion x3, Utility x5 7953 | -6/Factory | Discovered new exit (range 15) 7957 | -6/Factory | Identified exit to Factory 7989 | -6/Factory | Discovered exit to Factory (range 16) 8261 | -6/Factory | Build established: Scout 8288 | -6/Factory | Sucked down chute 8288 | -6/Factory | Entered Waste 8289 | -6/Waste | Met a frightened Derelict 8292 | -6/Waste | Spotted C-40 Crusher 8298 | -6/Waste | Spotted C-40 Crusher 8305 | -6/Waste | Spotted C-40 Crusher 8311 | -6/Waste | Lost 4 parts (2n2u) 8314 | -6/Waste | Discovered new exit (range 11) 8319 | -6/Waste | Identified exit to Factory 8319 | -6/Waste | Entered Factory 8551 | -6/Factory | Fabricated E-15 Imp? 8567 | -6/Factory | Discovered exit to Factory (range 12) 8568 | -6/Factory | Build established: Mutant 8570 | -6/Factory | Core integrity fell below 50% 8576 | -6/Factory | Entered another Factory area 8576 | -5/Factory | Evolved 2 slots: Utility x2 8707 | -5/Factory | Spotted B-75 Beast 8783 | -5/Factory | Discovered new exit (range 8) 8786 | -5/Factory | Identified exit to Upper Caves 8786 | -5/Factory | Entered Upper Caves 8791 | -5/Upper Caves | Spotted B-75 Beast 8825 | -5/Upper Caves | Core integrity fell below 50% 8853 | -5/Upper Caves | Core integrity fell below 20% 8864 | -5/Upper Caves | Attracted the attention of an 0b10 checkpoint 8869 | -5/Upper Caves | Destroyed by Y-64 Sentinel with KE Penetrator Last Messages --------------- LOCATION=UPPER CAVES GOAL=ESCAPE Critical hit (Burn: +50). Searching scrap... Found Datajack. Found Phase Shifter. Found Fusion Compressor. Found 41 Matter. Mak. Hammer destroyed. Knocked back. Acquired 2 matter. Searching scrap... Found Imp. Recalibrator. Found Gravmag System. Found 32 Matter. Acquired 13 matter. Slug penetrates Wall. Y-64 Sentinel: "INTERCEPTING UNREGISTERED DERELICT." Penetrated by Slug. Map ----- +----------------------------------------------------+ | ????## ##?????????# #?# | | ????# ###???????# ### ### ### #?# | | ?????# ###?????# #?## ### #### ### | | ???????# ###???#=%#??## #### ## | | ?????### ##?## !#???#### ## #### | | ????## ### ###????# ## ### # | | ????# ##??# #?## # | | ????## ### #??## # | | ?????## ### #???# | | ??????## #?# ####???# | | ???????# #?## ## #??????# ### | | ???????# ##?## ## #??????# #?? | | ??????## ##??# #??????# #?? | | ?????## #???# #??????# #?? | | ????## ###?####s #??????# #?? | | ????# ## # ##?##s ### #??????# #?? | | ????# ### ## ##s #??# #?????# ### | | ????# ###### ###? #?????# | | ????# ##??# #?? ????# | | ????# #?## ## ???###### | | ????# ###?# ????????? | | ????## #???# ????????? | | ????## #???# Y # ????????? | | ????# #???### # #????????? | | ????# ##?????## #????????? | | ????# ###???????## @ #????????? | | ????## ##??????? ????????? | | ?????## #???? ????????? | | ??????# #?# ###### ?????????? | | ??????# ##?# ???????## ?????????? | | ??????## #??# ???????????# ??????????? | | ???????####??#?????????????? ??????????? | | ???????????????????????????? ??????????? | | ????????????????????????????# ???????????? | | ????????????????????????????? ???????????? | | ????????????????????????????? ????????????? | | ?????????????????????????????? #????????????? | | ??????????????????????????????? #??????????????? | | ???????????????????????????????? ????????????????? | | ?????????????????????????????????????????????????? | | ?????????????????????????????????????????????????? | | ?????????????????????????????????????????????????? | | ?????????????????????????????????????????????????? | | ?????????????????????????????????????????????????? | | ?????????????????????????????????????????????????? | | ?????????????????????????????????????????????????? | | ?????????????????????????????????????????????????? | | ?????????????????????????????????????????????????? | | ?????????????????????????????????????????????????? | | ?????????????????????????????????????????????????? | +----------------------------------------------------+ Best States ------------- Heat Dissipation 40 Energy Generation 10 Energy Capacity 250 Matter Stores 300 Matter Capacity 300 Sight Range 16 Robot Scan Range 15 Terrain Scan Density 10 Armor Coverage 800 Evasion (%) 64 Recoil Reduction 2 Item Schematics ----------------- None Robot Schematics ------------------ None Fabricated ------------ E-15 Imp | x2 | -6/Factory | Preloaded Repaired ---------- Nothing Alien Tech Used ----------------- None Achievements -------------- Batter Up Challenges ------------ None Game ------ Seed JammingBiomechanicalRay Manual? 0 Play Time 00:41:03 Cumulative 200.6 hours Start 2025.09.12 @ 18:19:08 End 2025.09.12 @ 19:02:09 Sessions 1 Manual Loads 0 Difficulty Rogue Special Mode None Game No. 172 Rogue 172 Adventurer 0 Explorer 0 Win Type - Total 10 Types 4/0/2/2/1/0/0/0/0/1 Lore% 89 Gallery% 84 Achievement% 67 Wizard Run 0 Options --------- Layout 1 ASCII 0 Keyboard 0 Movement Numpad Keybinds 0 Fullscreen 1 Font 24/Proggy Map View 50x35 Zoom Use 0% Tactical HUD 0 Map Filters NONE Filters NONE Steam 1 RUN: ec4be736-8c67-4998-b035-dbf166aaa497